Cogmind - Beta 9.1 @@@ ROGUE MODE // 2019.11.08 @ 15:59:14 Player: Judas Result: Destroyed by L-31 Rogue with Katana Performance ------------- Evolutions (2) 1000 Regions Visited (3) 600 Robots Destroyed (19) 95 Value Destroyed (452) 452 Prototype IDs (2) 40 Alien Tech Used (0) 0 Bonus (0) 0 TOTAL SCORE: 2187 Bonus ------- None Cogmind --------- Core Integrity 0/550 Matter 21/300 Energy 100/100 System Corruption 0% Temperature Cool (0) Location -8/Materials Parts ------- Power (1) Propulsion (3) Utility (4) Large Storage Unit Visual Processing Unit Improved Targeting Computer Weapon (3) Inventory (10) Light Treads Improved Aluminum Leg Targeting Computer Layered Light Armor Plating Layered Light Armor Plating Light Assault Rifle Light Cannon Peak State ------------ Power Light Ion Engine Propulsion Light Treads Armored Wheel Armored Wheel Utility Small Storage Unit Large Storage Unit Visual Processing Unit Improved Targeting Computer Weapon Autogun Light Cannon Light Cannon Inventory Ion Engine Light Ion Engine Light Treads Improved Aluminum Leg Improved Aluminum Leg Improved Aluminum Leg Targeting Computer Layered Light Armor Plating Layered Light Armor Plating Light Assault Rifle Mining Laser [Rating: 18] Favorites ----------- Power Ion Engine Engine Ion Engine Propulsion Armored Wheel Treads Light Treads Leg Improved Aluminum Leg Wheel Armored Wheel Utility Small Storage Unit Storage Small Storage Unit Processor Improved Targeting Computer Weapon Light Cannon Energy Gun Small Laser Energy Cannon Heavy Particle Cannon Ballistic Gun Light Assault Rifle Ballistic Cannon Light Cannon Special Weapon Mining Laser Build | -11 -10 -9 -8 ------- Run | Scr Mat Mat Mat Slots Evolved 4 | . . 2 2 Power . | . . . . Propulsion 1 | . . . 1 Utility 2 | . . 1 1 Weapon 1 | . . 1 . Parts Attached 31 | 6 2 14 9 Power 5 | 1 . 2 2 Engine 5 | 1 . 2 2 Core . | . . . . Reactor . | . . . . Propulsion 13 | 2 . 8 3 Treads 3 | . . 2 1 Leg 6 | 2 . 2 2 Wheel 4 | . . 4 . Hover . | . . . . Flight . | . . . . Utility 4 | 1 . 2 1 Device . | . . . . Storage 2 | 1 . 1 . Processor 2 | . . 1 1 Hackware . | . . . . Protection . | . . . . Artifact . | . . . . Weapon 9 | 2 2 2 3 Energy Gun 2 | 1 1 . . Energy Cannon 2 | . . . 2 Ballistic Gun 2 | 1 . 1 . Ballistic Cannon 2 | . 1 1 . Launcher . | . . . . Special Weapon 1 | . . . 1 Impact Weapon . | . . . . Slashing Weapon . | . . . . Piercing Weapon . | . . . . Special Melee Weapon . | . . . . Unidentified Prototypes . | . . . . Parts Lost 15 | . 1 1 13 Power 4 | . . 1 3 Propulsion 4 | . . . 4 Utility 1 | . . . 1 Weapon 6 | . 1 . 5 Highest Loss Streak 13 | . 1 1 13 Average Slot Usage (%) 87 | . 85 93 78 Engine 9 | . 14 11 6 Treads 2 | . . 1 5 Leg 12 | . 28 14 . Wheel 7 | . . 5 14 Storage 18 | . 14 20 17 Processor 9 | . . 6 17 Energy Gun 1 | . 10 . . Ballistic Gun 9 | . 14 11 4 Ballistic Cannon 14 | . 3 22 9 Naked Turns . | . . . . Heaviest Build 37 | 11 13 32 37 Greatest Support 40 | 20 20 40 26 Greatest Overweight (x) 3 | 1 . 2 3 Average Overweight (x) . | . . . . Largest Inventory Capacity 12 | 6 6 12 12 Average Capacity 10 | 5 6 11 11 Most Carried 12 | 5 6 12 11 Average Carried 7 | 3 5 7 9 Final Capacity 12 | 6 6 12 10 Final Carried 11 | 5 6 11 7 Class Distribution -------------------- 60% | Gunner 39% | Mutant Dominant Class ---------------- Mutant | -10/Materials Gunner | -9/Materials Mutant | -8/Materials Resources | -11 -10 -9 -8 ----------- Run | Scr Mat Mat Mat Matter Collected 561 | 261 35 233 32 Remotely . | . . . . Salvage Created 517 | 21 137 327 32 Parts 38 | 3 9 22 4 Haulers Intercepted . | . . . . Recyclers Shooed 1 | . . 1 . Parts Field Recycled . | . . . . Retrieved Matter . | . . . . Parts Self-Destructed . | . . . . Prevented . | . . . . Kills | -11 -10 -9 -8 ------- Run | Scr Mat Mat Mat Combat Hostiles Destroyed 15 | . 3 9 3 Guns 6 | . 2 2 2 Cannons 9 | . 1 7 1 Classes Destroyed 7 | 1 2 4 . Tunneler 1 | 1 . . . Recycler 1 | . . 1 . Operator 1 | . 1 . . Watcher 1 | . . 1 . Swarmer 7 | . . 4 3 Grunt 6 | . 3 3 . Sentry 2 | . . 2 . Best Kill Streak 6 | 1 2 6 3 Combat Bots Only 6 | . 1 6 3 Max Kills in Single Turn 1 | 1 1 1 1 Gunslinging . | . . . . Exploded . | . . . . Melee . | . . . . Uniques/NPCs Destroyed . | . . . . Combat | -11 -10 -9 -8 -------- Run | Scr Mat Mat Mat Damage Taken 2420 | . 145 357 1918 Core 700 | . 58 64 578 Absorbed by Shields . | . . . . Core Remaining (%) 86 | 100 76 84 . Volleys Fired 58 | 1 16 26 15 Largest 3 | 2 2 3 3 Hottest 150 | 60 60 93 150 Shots Fired 147 | 2 30 78 37 Gun 67 | 2 29 26 10 Cannon 78 | . 1 52 25 Launcher . | . . . . Special 2 | . . . 2 Kinetic 127 | 1 17 78 31 Thermal 20 | 1 13 . 6 Explosive . | . . . . Electromagnetic . | . . . . Robot Hit Streak 7 | 1 7 4 6 Robot Miss Streak 5 | . 3 5 4 Penetration Max . | . . . . Secondary Targets . | . . . . Shots Hit Robots 82 | 1 21 41 19 Core Hits 28 | 1 7 17 3 Critical Hits . | . . . . Critical Kills . | . . . . Critical Parts Destroyed . | . . . . Melee Attacks . | . . . . Impact . | . . . . Slashing . | . . . . Piercing . | . . . . Sneak Attacks . | . . . . Combat Hostiles . | . . . . Follow-up Attacks . | . . . . Damage Inflicted 886 | 11 174 491 210 Guns 412 | 11 159 155 87 Cannons 436 | . 15 336 85 Explosions . | . . . . Melee . | . . . . Ramming 14 | . . . 14 Kinetic 737 | . 74 491 172 Thermal 135 | 11 100 . 24 Explosive . | . . . . Electromagnetic . | . . . . Impact . | . . . . Slashing . | . . . . Piercing . | . . . . Highest Corruption . | . . . . Average Corruption . | . . . . Corruption Purged . | . . . . Overload Shots . | . . . . Overflow Damage . | . . . . Projectiles . | . . . . Explosions . | . . . . Melee . | . . . . Knockbacks 4 | . . 2 2 Impact . | . . . . Kinetic 4 | . . 2 2 Secondary . | . . . . Self-Inflicted Damage 7 | . . . 7 Shots . | . . . . Rammed 1 | . . . 1 Targets Rammed 1 | . . . 1 Kicked . | . . . . Crushed . | . . . . Highest Temperature 178 | 20 70 178 144 Average Temperature 57 | 15 24 57 79 Received Heat Transfer 585 | . 78 102 405 Siege Activations . | . . . . Robots Corrupted . | . . . . Combat Hostiles . | . . . . Parts Fried . | . . . . Impact Corruptions . | . . . . Robots Melted . | . . . . Combat Hostiles . | . . . . Parts Melted . | . . . . Heat Transferred 300 | 25 225 . 50 Parts Sabotaged . | . . . . Parts Stolen . | . . . . Parts Stripped . | . . . . Power Chain Reactions . | . . . . Missiles Intercepted . | . . . . Alert | -11 -10 -9 -8 ------- Run | Scr Mat Mat Mat Peak Influence 379 | 5 78 379 259 Average Influence 130 | 1 35 142 198 Maximum Alert Level 1 | . . 1 1 Low Security (%) 79 | . . . . Level 1 20 | . . . . Level 2 . | . . . . Level 3 . | . . . . Level 4 . | . . . . Level 5 . | . . . . High Security . | . . . . Max Security . | . . . . Squads Dispatched 4 | . 2 . 2 Investigation 1 | . 1 . . Extermination . | . . . . Reinforcement 3 | . 1 . 2 Assault . | . . . . Garrison . | . . . . Intercept . | . . . . Construction Impeded . | . . . . Haulers Reinforced . | . . . . Stealth | -11 -10 -9 -8 --------- Run | Scr Mat Mat Mat Distress Signals 1 | . . 1 . Communications Jammed . | . . . . Distress Signals . | . . . . Times Spotted 38 | . 5 18 15 Peak Tracking Total 8 | . 1 5 8 Tactical Retreats 2 | . . 1 1 Traps | -11 -10 -9 -8 ------- Run | Scr Mat Mat Mat Traps Triggered 1 | . 1 . . Indirectly . | . . . . Trap Hack Attempts . | . . . . Triggered . | . . . . Disarmed . | . . . . Reprogrammed . | . . . . Reused . | . . . . Traps Extracted . | . . . . Installed . | . . . . Triggered . | . . . . Machines | -11 -10 -9 -8 ---------- Run | Scr Mat Mat Mat Machines Disabled 3 | . . 2 1 Max in Single Turn 1 | . . 1 1 Machines Sabotaged . | . . . . Garrisons Compromised . | . . . . Overloaded Fab Kills . | . . . . Fab Network Shutdowns . | . . . . Hacking | -11 -10 -9 -8 --------- Run | Scr Mat Mat Mat Machines Accessed 3 | . 1 2 . Terminals 2 | . 1 1 . Fabricators . | . . . . Repair Stations . | . . . . Recycling Units 1 | . . 1 . Scanalyzers . | . . . . Garrison Access . | . . . . Total Hacks 9 | . 4 5 . Successful 5 | . 1 4 . Failed 4 | . 3 1 . Catastrophic . | . . . . Database Lockouts . | . . . . Manual 5 | . 4 1 . Terminals 8 | . 4 4 . Fabricators . | . . . . Repair Stations . | . . . . Recycling Units 1 | . . 1 . Scanalyzers . | . . . . Garrison Access . | . . . . Terminal Hacks 2 | . . 2 . Prototype ID Bank 1 | . . 1 . Zone Layout 1 | . . 1 . Fabricator Hacks . | . . . . Repair Station Hacks . | . . . . Recycling Unit Hacks 1 | . . 1 . Retrieve Components 1 | . . 1 . Scanalyzer . | . . . . Garrison Access Hacks . | . . . . Unauthorized Hacks 4 | . 2 2 . Terminals 2 | . 1 1 . Botnet 2 | . 1 1 . Fabricators . | . . . . Repair Stations . | . . . . Recycling Units . | . . . . Scanalyzers . | . . . . Garrison Access . | . . . . Data Cores Recovered . | . . . . Used . | . . . . Hacking Detections 1 | . 1 . . Full Trace Events . | . . . . Feedback Events . | . . . . Feedback Blocked . | . . . . Robot Schematics Acquired . | . . . . Robots Built . | . . . . Matter . | . . . . Time . | . . . . Total Robot Build Rating . | . . . . Part Schematics Acquired . | . . . . Parts Built . | . . . . Matter . | . . . . Time . | . . . . Total Part Build Rating . | . . . . Parts Repaired . | . . . . Time . | . . . . Parts Recycled . | . . . . Recycled Matter . | . . . . Retrieved Matter . | . . . . Retrieved Components 7 | . . 7 . Parts Scanalyzed . | . . . . Part Schematics Acquired . | . . . . Parts Damaged . | . . . . Bothacking | -11 -10 -9 -8 ------------ Run | Scr Mat Mat Mat Used RIF Installer . | . . . . Robots Hacked . | . . . . Non-combat . | . . . . Combat . | . . . . Robot Hacks Applied . | . . . . Relay Couplers Released . | . . . . Robots Rewired . | . . . . Allies Hacked . | . . . . Hacks Repelled . | . . . . Allies | -11 -10 -9 -8 -------- Run | Scr Mat Mat Mat Total Allies . | . . . . Largest Group . | . . . . Highest-Rated Group . | . . . . Highest-Rated Ally . | . . . . Total Orders . | . . . . Ally Attacks . | . . . . Total Damage . | . . . . Kills . | . . . . Allies Corrupted . | . . . . Allies Melted . | . . . . Intel | -11 -10 -9 -8 ------- Run | Scr Mat Mat Mat Robot Analysis Total . | . . . . Derelict Logs Recovered . | . . . . Drone Launches . | . . . . Drone Recoveries . | . . . . Exploration | -11 -10 -9 -8 ------------- Run | Scr Mat Mat Mat Turns Passed 878 | 81 131 396 270 Spaces Moved 508 | 59 70 218 161 Core 10 | 10 . . . Treads 6 | . . 6 . Legs 265 | 49 70 139 7 Wheels 227 | . . 73 154 Hover . | . . . . Flight . | . . . . Fastest Speed 50 | 50 120 100 90 Average Speed 116 | 110 120 127 101 Slowest Speed 160 | 120 120 160 150 Overloaded Moves . | . . . . Propulsion Burnouts . | . . . . Robots Hopped . | . . . . Cave-ins Triggered . | . . . . Exploration Rate (%) 15 | 4 18 24 14 Regions Visited 3 Branch Regions . Pre-discovered Areas . | . . . . Known Exits Taken . | . . . . Unknown Exits Taken 3 | 1 1 1 . Scrap Searched . | . . . . Spaces Dug . | . . . . Terrain Destroyed 5 | . . . 5 Melee . | . . . . Projectile 5 | . . . 5 AOE . | . . . . Actions | -11 -10 -9 -8 --------- Run | Scr Mat Mat Mat Total 676 | 70 90 281 235 Wait 54 | . . 9 45 Move 505 | 58 69 217 161 Hop . | . . . . Pick Up 18 | 5 2 8 3 Fast Attach 13 | 6 1 4 2 Attach 9 | . 1 2 6 Detach 2 | . . 2 . Swap 9 | . . 8 1 Drop 7 | . 1 5 1 Fire 58 | 1 16 26 15 Melee . | . . . . Ram 1 | . . . 1 Kick . | . . . . Crush . | . . . . Escape Stasis . | . . . . Rewire . | . . . . Trap . | . . . . Miscellaneous . | . . . . Route ------- -11/Scrapyard -10/Materials -9/Materials (discovered 2 exits: [*Mat] / [*Min]) -8/Materials History --------- Turn | Location | Event 9 | -11/Scrapyard | Discovered new exit (range 16) 82 | -11/Scrapyard | Entered Materials 207 | -10/Materials | Discovered new exit (range 3) 213 | -10/Materials | Entered another Materials area 213 | -9/Materials | Evolved 2 slots: Utility x1, Weapon x1 298 | -9/Materials | Discovered new exit (range 5) 528 | -9/Materials | Build established: Gunner 604 | -9/Materials | Discovered new exit (range 6) 609 | -9/Materials | Entered another Materials area 609 | -8/Materials | Evolved 2 slots: Propulsion x1, Utility x1 850 | -8/Materials | Core integrity fell below 50% 865 | -8/Materials | Core integrity fell below 20% 879 | -8/Materials | Destroyed by L-31 Rogue with Katana Last Messages --------------- 00795_ K-01 Serf collects debris. 00798_ O-16 Technician uses terminal to summon reinforcements. 00798_ ALERT: Hostiles spotted, dispatching reinforcements to Terminal M012. 00798_ O-16 Technician locks terminal. 00799_ Acquired Hvy. Particle Cannon. 00800_ K-01 Serf collects debris. 00801_ Acquired Hvy. Particle Cannon. 00804_ K-01 Serf collects debris. 00807_ Arm. Wheel destroyed. 00808_ K-01 Serf collects debris. 00820_ Slug penetrates Wall. 00822_ Hvy. Particle Cannon destroyed. 00823_ Ion Engine destroyed. 00827_ Imp. Aluminum Leg severed. 00828_ Slug penetrates Wall. 00847_ Arm. Wheel destroyed. 00847_ Imp. Aluminum Leg destroyed. 00852_ K-01 Serf cleans the Neutrino Reactor. 00869_ Sml. Storage Unit destroyed. Map ----- +----------------------------------------------------+ | ??????????????????????????????????? | | ??????????????????????????????????? | | ??????????????????????????????????? | | ??????????????????????????????????? | | ??????????????????????????????????? | | ??????????????????????????????????? | | ??????????????????????????????????? | | ??????????????????????????????????? | | ??????????????????????????????????? | | ??????????????????????????????????? | | ??????????????????????????????????? | | ??????????????????????????????????? | | ??????????????????????????????????? | | ??????????????????????????????????? | | ??????????????????????????????????? | | ??????????????????????????????????? | | ??????????????????????????????????? | | ??????????????????????????????????? | | ??????????????????????????????????? | | ???????????? ??????????????????? | | ??????????# ??????????????????? | | ??????????? #?????????????????? | | ??????????? #?????????????????? | | ??????????? #?????????????????? | | ???? ??????" #???##############? | | ???? ???"""" #???# """@""" """ # | | ???# """"" #???# """l""" """ # | | ???# """"" #???# """s""" """ # | | ???# """ #???# ggg # | | ???# #???# =hg # | | ??? #???# # | | ???? """ ########;;+;####### | | ?????# """"" ]] ;#?????? | | ?????# """"" ! ##?????? | | ?????# """"" ! !! ##?????? | | ?????# """ ! !! "#?????? | | ?????# T#?????? | | ?????# "#?????? | | ?????# ##?????? | | ?????###### ### #??????? | | ?????######/### #??????? | | ?????# ! ! # """ #??????? | | ?????# # """ #?????? | | ###### + """ #?????? | | # """ # +?????? | | + """ # #?????? | | # """ ########### ##?????? | | ## ##########?????????? #??????? | | ?# #??????????????????? +??????? | | ?# #####??????????????? #??????? | +----------------------------------------------------+ Best States ------------- Heat Dissipation 31 Energy Generation 10 Energy Capacity 250 Matter Stores 300 Matter Capacity 300 Sight Range 18 Terrain Scan Density 10 Evasion (%) 42 Targeting Accuracy 6 Recoil Reduction 2 Item Schematics ----------------- None Robot Schematics ------------------ None Fabricated ------------ Nothing Alien Tech Used ----------------- None Achievements -------------- None Challenges ------------ None Game ------ Seed DerelictLayeredEngine Manual? 0 Play Time 00:21:04 Cumulative 13.8 hours Start 2019.11.08 @ 15:30:24 End 2019.11.08 @ 15:59:14 Sessions 1 Manual Loads 0 Difficulty Rogue Special Mode None Game No. 31 Rogue 31 Adventurer 0 Explorer 0 Win Type - Total 0 Types 0/0/0/0/0/0/0 Lore% 10 Gallery% 20 Achievement% 16 Wizard Run 0 Options --------- ASCII 0 Keyboard 0 Movement Mouse Keybinds 0 Fullscreen 1 Font 18/SmallcapsGlow Map View 76x50 Tactical HUD 1 Map Filters NONE Filters NONE Steam 1 RUN: cc7177fb-4dd4-48c8-aa89-f284f43604cb